Workbook

Sheet RiskSerializationData (hidden)
A1: 6 | B1: 0
A2: 0
A3: ='[1]30 year plan'!$B$65 -> 0.05360282049 | B3: TRUE | C3: 0 | D3: 1 | E3: GF1_rK0qDwEADgDLAAwjACYAOQBSAGYAZwB1AIMApQDHAMEAKgD//wAAAAAAAQQAAAAABTAuMDAlAAAAARNDYXBpdGFsaXphdGlvbiBSYXRlAQABARAAAgABClN0YXRpc3RpY3MDAQEA/wEBAQEBAAEBAQAEAAAAAQEBAQEAAQEBAAQAAAABhwACGgATQ2FwaXRhbGl6YXRpb24gUmF0ZQAALwECAAIArQC3AAEBAgGamZmZmZmpPwAAZmZmZmZm7j8AAAUAAQEBAAEBAQA= | F3: 1 | G3: 0 | H3: 0 | J3: >75% | K3: <25% | L3: >90% | AG3: ='[1]30 year plan'!$B$65 -> 0.05360282049 | AH3: 1 | AI3: 1 | AJ3: FALSE | AK3: TRUE | AL3: 0 | AM3: FALSE | AN3: =_ -> 
A4: ='[1]30 year plan'!$B$66 -> 0.03885476062 | B4: TRUE | C4: 0 | D4: 1 | E4: GF1_rK0qDwEADgDfAAwjACYAOQBdAHEAcgCAAI4AuwDbANUAKgD//wAAAAAAAQQAAAAABTAuMDAlAAAAAR5CZWZvcmUgVGF4IENhc2ggb24gQ2FzaCBSZXR1cm4BAAEBEAACAAEKU3RhdGlzdGljcwMBAQD/AQEBAQEAAQEBAAQAAAABAQEBAQABAQEABAAAAAGSAAIlAB5CZWZvcmUgVGF4IENhc2ggb24gQ2FzaCBSZXR1cm4AAC8BAgACAMMAzAABAQIBAAAAAAAA8H8BmpmZmZmZuT8BBQABAQEAAQEBAA== | F4: 1 | G4: 0 | H4: 0 | J4: >75% | K4: <25% | L4: >90% | AG4: ='[1]30 year plan'!$B$66 -> 0.03885476062 | AH4: 2 | AI4: 1 | AJ4: FALSE | AK4: TRUE | AL4: 0 | AM4: FALSE | AN4: =_ -> 
A5: ='[1]30 year plan'!$B$70 -> 33470.88444 | B5: TRUE | C5: 0 | D5: 1 | E5: GF1_rK0qDwEADgDsAAwjACYAUABvAIMAhACSAKAAyADoAOIAKgD//wAAAAAAAQQAAAAAHCQjLCMjMC4wMF8pO1tSZWRdKCQjLCMjMC4wMCkAAAABGU5ldCBQcmVzZW50IFZhbHVlIChTaW0jMSkBAAEBEAACAAEKU3RhdGlzdGljcwMBAQD/AQEBAQEAAQEBAAQAAAABAQEBAQABAQEABAAAAAGkAAIgABlOZXQgUHJlc2VudCBWYWx1ZSAoU2ltIzEpAAAvAQIAAgDQANkAAQECAQAAAAAAAAAAAQAAAAAAAPB/AQUAAQEBAAEBAQA= | F5: 1 | G5: 1 | H5: 2 | I5: GF1_Z0CmcQEADgCxAAwjACYAMgAAAHEAcgCRAJ8AAAAAAKoAKAD//wABEAEEAAAAAAAAAAABEU5ldCBQcmVzZW50IFZhbHVlAShDb3JyZWxhdGlvbiBDb2VmZmljaWVudHMgKFNwZWFybWFuIFJhbmspAQH/AQEBAQERQ29lZmZpY2llbnQgVmFsdWUBAQEABAAAAAEBAQEBAAEBAQAEAAAAAaMAAwcAAAAALwEFAAEBAQAA0~0~>75%~<25%~>90%~10~0~0.95~1~False~False~ | J5: >75% | K5: <25% | L5: >90% | AG5: ='[1]30 year plan'!$B$70 -> 33470.88444 | AH5: 4 | AI5: 1 | AJ5: FALSE | AK5: TRUE | AL5: 0 | AM5: FALSE | AN5: =_ -> 
A6: ='[1]30 year plan'!$B$71 -> 0.1214642948 | B6: TRUE | C6: 0 | D6: 1 | F6: 1 | G6: 1 | H6: 2 | I6: GF1_Z0CmcQEADgC3AAwjACYAMgAAAHcAeACXAKUAAAAAALAAKAD//wABEAEEAAAAAAAAAAABF0ludGVybmFsIFJhdGUgb2YgUmV0dXJuAShDb3JyZWxhdGlvbiBDb2VmZmljaWVudHMgKFNwZWFybWFuIFJhbmspAQH/AQEBAQERQ29lZmZpY2llbnQgVmFsdWUBAQEABAAAAAEBAQEBAAEBAQAEAAAAAakAAwcAAAAALwEFAAEBAQAA0~0~>75%~<25%~>90%~10~0~0.95~1~False~False~ | J6: >75% | K6: <25% | L6: >90% | AG6: ='[1]30 year plan'!$B$71 -> 0.1214642948 | AH6: 5 | AI6: 1 | AJ6: FALSE | AK6: TRUE | AL6: 0 | AM6: FALSE | AN6: =_ -> 
A7: ='[1]Five year with resale'!$B$70 -> 11522.53832 | B7: TRUE | C7: 0 | D7: 1 | E7: GF1_rK0qDwEADgDcAAwjACYAUABnAHsAfACKAJgAuADYANIAKgD//wABAAAAAQQAAAAAHCQjLCMjMC4wMF8pO1tSZWRdKCQjLCMjMC4wMCkAAAABEU5ldCBQcmVzZW50IFZhbHVlAQABARAAAgABClN0YXRpc3RpY3MDAQEA/wEBAQEBAAEBAQAEAAAAAQEBAQEAAQEBAAQAAAABnAACGAARTmV0IFByZXNlbnQgVmFsdWUAAC8BAgACAMAAyQABAQIBAAAAAAAAAAABAAAAAAAA8H8BBQABAQEAAQEBAA== | F7: 1 | G7: 0 | H7: 2 | I7: GF1_Z0CmcQEADgCxAAwjACYAMgAAAHEAcgCRAJ8AAAAAAKoAKAD//wABEAEEAAAAAAAAAAABEU5ldCBQcmVzZW50IFZhbHVlAShDb3JyZWxhdGlvbiBDb2VmZmljaWVudHMgKFNwZWFybWFuIFJhbmspAQH/AQEBAQERQ29lZmZpY2llbnQgVmFsdWUBAQEABAAAAAEBAQEBAAEBAQAEAAAAAaMAAwcAAAAALwEFAAEBAQAA | J7: >75% | K7: <25% | L7: >90% | AG7: ='[1]Five year with resale'!$B$70 -> 11522.53832 | AH7: 9 | AI7: 1 | AJ7: FALSE | AK7: TRUE | AL7: 0 | AM7: FALSE | AN7: =_ -> 
A8: ='[1]Five year with resale'!$B$71 -> 0.1275650638 | B8: TRUE | C8: 0 | D8: 1 | E8: GF1_rK0qDwEADgDOAAwjACYANgBTAGcAaAB2AIQAqgDKAMQAKgD//wAAAAAAAQQAAAAAAjAlAAAAARdJbnRlcm5hbCBSYXRlIG9mIFJldHVybgEAAQEQAAIAAQpTdGF0aXN0aWNzAwEBAP8BAQEBAQABAQEABAAAAAEBAQEBAAEBAQAEAAAAAYgAAh4AF0ludGVybmFsIFJhdGUgb2YgUmV0dXJuAAAvAQIAAgCyALsAAQECAQrXo3A9Crc/AQAAAAAAAPB/AQUAAQEBAAEBAQA= | F8: 1 | G8: 1 | H8: 2 | I8: GF1_Z0CmcQEADgC3AAwjACYAMgAAAHcAeACXAKUAAAAAALAAKAD//wABEAEEAAAAAAAAAAABF0ludGVybmFsIFJhdGUgb2YgUmV0dXJuAShDb3JyZWxhdGlvbiBDb2VmZmljaWVudHMgKFNwZWFybWFuIFJhbmspAQH/AQEBAQERQ29lZmZpY2llbnQgVmFsdWUBAQEABAAAAAEBAQEBAAEBAQAEAAAAAakAAwcAAAAALwEFAAEBAQAA0~0~>75%~<25%~>90%~10~0~0.95~1~False~False~ | J8: >75% | K8: <25% | L8: >90% | AG8: ='[1]Five year with resale'!$B$71 -> 0.1275650638 | AH8: 10 | AI8: 1 | AJ8: FALSE | AK8: TRUE | AL8: 0 | AM8: FALSE | AN8: =_ -> 
A9: 0
A10: FALSE | B10: 13440 | C10: 6215 | D10: 7050 | E10: 100
A11: FALSE | B11: 13440 | C11: 6215 | D11: 7050 | E11: 500
A12: FALSE | B12: 13440 | C12: 6215 | D12: 7050 | E12: 1000
A13: FALSE | B13: 13440 | C13: 6215 | D13: 7050 | E13: 1500
A14: FALSE | B14: 13440 | C14: 6215 | D14: 7050 | E14: 2000
A15: 0
A16: 0 | B16: FALSE | C16: FALSE | D16: 10 | E16: 0.95 | F16: 1

Sheet rsklibSimData (hidden)
A1: 0946ff9e244c444140132a9bceb303830|1|148500|e709214d83108a0e8da35606ad6c53b1

Sheet Taxes
A1: Inputs
A3: Your Name | B3: Jonny LeFevre
A4: Filing Status | B4: Married Filing Jointly
A5: Your Income | B5: 57200 | G5: Federal Tax
A6: Number of Dependents | B6: 0 | G6: Single | H6: Married Filing Jointly | I6: Head of Household | J6: Marginal Tax Rate
A7: State of Residence | B7: Arizona | G7: 0 | H7: 0 | I7: 0 | J7: 0.1
G8: 9075 | H8: 18150 | I8: 12950 | J8: 0.15
A9: Outputs (Federal Taxes) | G9: 36900 | H9: 73800 | I9: 49400 | J9: 0.25
A10: Income | B10: =B5 -> 57200 | G10: 89350 | H10: 148850 | I10: 127550 | J10: 0.28
A11: Contributions To 401K | B11: =-B10*0.06 -> -3432 | G11: 186350 | H11: 226850 | I11: 206600 | J11: 0.33
A12: Other Income | B12: 0 | G12: 405100 | H12: 405100 | I12: 405100 | J12: 0.35
A13: Gross Income | B13: =SUM(B10:B12) -> 53768 | G13: 406750 | H13: 457000 | I13: 432200 | J13: 0.396
A14: Flexiable Spending | B14: 0
A15: Adjusted Gross Income (AGI) | B15: =B13-B14 -> 53768
A16: Standard Deduction | B16: =VLOOKUP(B4,G18:H21,2,FALSE) -> 12400 | G16: http://www.irs.com/articles/2014-federal-tax-rates-personal-exemptions-and-standard-deductions
A17: Total Personal Exemption | B17: =B15-B16 -> 41368 | G17: Filing Status | H17: Standard Deduction
A18: Dependent Exemptions | B18: =(B6+IF(B4="Married Filing Jointly",2,IF(B4="Single",1,1)))*H23 -> 7900 | G18: Single | H18: 6200
A19: Taxable Income | B19: =B17-B18 -> 33468 | G19: Married Filing Jointly | H19: 12400
G20: Married Filing Separately | H20: 6200
A21: Tax Liablity | B21: 4373 | G21: Head of Household | H21: 9100
A22: Tax Credits
A23: Federal Taxes Owed | B23: =B21-B22 -> 4373 | G23: Personal Exemption | H23: 3950
A24: Your Marginal Tax Rate Is | B24: =VLOOKUP(B5,IF(B4=G6,G7:J13,IF(B4=H6,H7:J13,I7:J13)),IF(B4=G6,4,IF(B4=H6,3,2)),TRUE) -> 0.15
A26: Social Security Taxes | B26: =(B10+B12)*H27 -> 3546.4
A27: Medicare Taxes | B27: =(B10+B12)*H28 -> 829.4 | G27: Social Security | H27: 0.062
A28: Total Federal Taxes Owed | B28: =B23+B26+B27 -> 8748.8 | G28: Medicare | H28: 0.0145
A31: Outputs (State Taxes) | G31: State | H31: =LOWER(SUBSTITUTE(B7," ","")) -> arizona
A32: Income | B32: =B5 -> 57200 | G32: Single | H32: Marginal Tax Rate
A33: Contributions To 401K | B33: =B11 -> -3432 | G33: 0 | H33: 0.0259
A34: Other Income | B34: 0 | G34: 10000 | H34: 0.0288
A35: Gross Income | B35: =SUM(B32:B34) -> 53768 | G35: 25000 | H35: 0.0336
A36: Flexiable Spending | B36: 0 | G36: 50000 | H36: 0.0424
A37: Adjusted Gross Income (AGI) | B37: =B35-B36 -> 53768 | G37: 150000 | H37: 0.0454
A38: Standard Deduction | B38: =VLOOKUP(B4,G18:H21,2,FALSE) -> 12400
A39: Total Personal Exemption | B39: =B37-B38 -> 41368 | G39: Married Filing Jointly | H39: Marginal Tax Rate
A40: Dependent Exemptions | B40: =(B6+IF(B4="Married Filing Jointly",2,IF(B4="Single",1,1)))*H23 -> 7900 | G40: 0 | H40: 0.0259
A41: Taxable Income | B41: =B39-B40 -> 33468 | G41: 20000 | H41: 0.0288
G42: 50000 | H42: 0.0336
A43: Tax Liablity | B43: 906 | G43: 100000 | H43: 0.0424
A44: Tax Credits | G44: 300000 | H44: 0.0454
A45: Total Taxes Owed | B45: =B43-B44 -> 906
A47: Total Taxes Due | B47: =B45+B28 -> 9654.8
A48: Money Leftover For You | B48: =B13-B45-B28 -> 44113.2

Sheet Debt Repayment Schedule
A3: Total Debt | B3: =SUM(B12:Y12) -> 10000 | C3: Beginning Month: | D3: August | H3: Do not include your Mortgage in this calculator. | AA3: Pay highest interest loan first
A4: Total Interest Paid | B4: =SUM(B56:B56) -> 368.1857805 | C4: Beginning Year: | D4: 2015 | AA4: Pay shortest payoff loan first
A5: Total Interest and Principle | B5: =B4+B3 -> 10368.18578 | C5: Accelerator: | D5: 0 | AA5: 1
A6: Minimum Payments/Month | B6: =+SUM(B16:U16) -> 272.8469944 | C6: Beginning Month | D6: =A17 -> 2015-08-01
A7: Months Paid Off Early | B7: =COUNTIF(D$17:D$54, "-") -> 0 | C7: Ending Month | D7: =DATE_PAID -> 2018-09-01
A8: Date Paid Off | B8: 2018-09-01 | C8: Years to Pay Off | D8: =(D7-D6)/365 -> 3.087671233
A9: Total Interest Saved | B9: 0 | C9: Years Paid Early | D9: =MONTHS_EARLY/12 -> 0
A11: Debt: | B11: Mountain Poop
A12: Balance Due | B12: 10000
A13: APR | B13: 0.0224
A14: Monthly Interest Rate | B14: =(B$13)/12 -> 0.001866666667
A15: # of months to pay off | B15: 38
A16: Amount of Scheduled payment | B16: =PMT(0.00186666666666667, 38, 10000)*-1 -> 272.8469944 | D16: Total Monthly Payments | E16: Additional Payments
A17: 2015-08-01 | B17: 272.847 | D17: 272.847 | E17: -
A18: 2015-09-01 | B18: 272.847 | D18: 272.847 | E18: -
A19: 2015-10-01 | B19: 272.847 | D19: 272.847 | E19: -
A20: 2015-11-01 | B20: 272.847 | D20: 272.847 | E20: -
A21: 2015-12-01 | B21: 272.847 | D21: 272.847 | E21: -
A22: 2016-01-01 | B22: 272.847 | D22: 272.847 | E22: -
A23: 2016-02-01 | B23: 272.847 | D23: 272.847 | E23: -
A24: 2016-03-01 | B24: 272.847 | D24: 272.847 | E24: -
A25: 2016-04-01 | B25: 272.847 | D25: 272.847 | E25: -
A26: 2016-05-01 | B26: 272.847 | D26: 272.847 | E26: -
A27: 2016-06-01 | B27: 272.847 | D27: 272.847 | E27: -
A28: 2016-07-01 | B28: 272.847 | D28: 272.847 | E28: -
A29: 2016-08-01 | B29: 272.847 | D29: 272.847 | E29: -
A30: 2016-09-01 | B30: 272.847 | D30: 272.847 | E30: -
A31: 2016-10-01 | B31: 272.847 | D31: 272.847 | E31: -
A32: 2016-11-01 | B32: 272.847 | D32: 272.847 | E32: -
A33: 2016-12-01 | B33: 272.847 | D33: 272.847 | E33: -
A34: 2017-01-01 | B34: 272.847 | D34: 272.847 | E34: -
A35: 2017-02-01 | B35: 272.847 | D35: 272.847 | E35: -
A36: 2017-03-01 | B36: 272.847 | D36: 272.847 | E36: -
A37: 2017-04-01 | B37: 272.847 | D37: 272.847 | E37: -
A38: 2017-05-01 | B38: 272.847 | D38: 272.847 | E38: -
A39: 2017-06-01 | B39: 272.847 | D39: 272.847 | E39: -
A40: 2017-07-01 | B40: 272.847 | D40: 272.847 | E40: -
A41: 2017-08-01 | B41: 272.847 | D41: 272.847 | E41: -
A42: 2017-09-01 | B42: 272.847 | D42: 272.847 | E42: -
A43: 2017-10-01 | B43: 272.847 | D43: 272.847 | E43: -
A44: 2017-11-01 | B44: 272.847 | D44: 272.847 | E44: -
A45: 2017-12-01 | B45: 272.847 | D45: 272.847 | E45: -
A46: 2018-01-01 | B46: 272.847 | D46: 272.847 | E46: -
A47: 2018-02-01 | B47: 272.847 | D47: 272.847 | E47: -
A48: 2018-03-01 | B48: 272.847 | D48: 272.847 | E48: -
A49: 2018-04-01 | B49: 272.847 | D49: 272.847 | E49: -
A50: 2018-05-01 | B50: 272.847 | D50: 272.847 | E50: -
A51: 2018-06-01 | B51: 272.847 | D51: 272.847 | E51: -
A52: 2018-07-01 | B52: 272.847 | D52: 272.847 | E52: -
A53: 2018-08-01 | B53: 272.847 | D53: 272.847 | E53: -
A54: 2018-09-01 | B54: 272.8467805 | D54: 272.8467805 | E54: -
A55: Total Payments | B55: =SUM(B$17:B54) -> 10368.18578 | D55: =SUM(D$17:D54) -> 10368.18578
A56: Total Interest Paid | B56: 368.1857805 | D56: =SUM(B56:B56) -> 368.1857805

Sheet Budget
A1: BUDGET | C1: Jan | D1: Feb | E1: Mar | F1: April | G1: May | H1: June | I1: July | J1: Aug | K1: Sept | L1: Oct | M1: Nov | N1: Dec | P1: TOTALS | AB1: ------------------------------------------------------------------------------------------------------------------------------------- | AP1: |
A3: NET INCOME | C3: =Taxes!B48 -> 44113.2 | AB3: | | AD3: | | AG3: | | AJ3: | | AM3: | | AP3: |
B4: 1st Income | C4: =C3/12 -> 3676.1 | D4: =C4 -> 3676.1 | E4: =D4 -> 3676.1 | F4: 3676.1 | G4: 3676.1 | H4: 3676.1 | I4: 3676.1 | J4: 3676.1 | K4: 3676.1 | L4: 3676.1 | M4: 3676.1 | N4: 3676.1 | P4: =SUM(C4:N4) -> 44113.2 | AB4: ------------------------------------------------------------------------------------------------------------------------------------- | AP4: ---
B5: 2nd Income | C5: =(1-0.2689)*5000/12 -> 304.625 | D5: =C5 -> 304.625 | E5: =D5 -> 304.625 | F5: 304.625 | G5: 304.625 | H5: 304.625 | I5: 304.625 | J5: 304.625 | K5: 304.625 | L5: 304.625 | M5: 304.625 | N5: 304.625 | P5: =SUM(C5:O5) -> 3655.5 | AB5: | | AC5: Food | AD5: | | AF5: Medical | AG5: | | AI5: Life Ins | AJ5: | | AL5: Home/Car | AM5: | | AO5: Rec&Misc | AP5: |
B6: Bank Account 1 | C6: 10000 | P6: 10000 | AB6: ------------------------------------------------------------------------------------------------------------------------------------- | AP6: ---
B7: Bank Account 2 | P7: 0 | AB7: | | AC7: =#REF! ->  | AD7: | | AF7: =F58 -> 0 | AG7: | | AI7: =F59 -> 0 | AJ7: | | AL7: =F60 -> 0 | AM7: | | AO7: =F56 -> 0 | AP7: |
B8: Bank Account 3 | P8: =SUM(C8:N8) -> 0
B9: Savings | C9: =C4*3 -> 11028.3 | P9: =SUM(C9:O9) -> 11028.3
P10: =SUM(C10:O10) -> 0
P11: =SUM(C11:O11) -> 0
A12: TOTAL NET INCOME | C12: =SUM(C4:C11) -> 25009.025 | D12: =SUM(D4:D11) -> 3980.725 | E12: 3980.725 | F12: 3980.725 | G12: 3980.725 | H12: 3980.725 | I12: 3980.725 | J12: 3980.725 | K12: 3980.725 | L12: 3980.725 | M12: 3980.725 | N12: 3980.725 | O12: 0 | P12: =SUM(P4:P11) -> 68797 | AB12: | | AD12: | | AG12: | | AJ12: | | AM12: | | AP12: |
A14: MONTHLY EXPENDITURES | C14: Jan | D14: Feb | E14: Mar | F14: April | G14: May | H14: June | I14: July | J14: Aug | K14: Sept | L14: Oct | M14: Nov | N14: Dec | AB14: | | AD14: | | AG14: | | AJ14: | | AM14: | | AP14: |
B15: Tithing | C15: =SUM(C4:C5)*0.1 -> 398.0725 | D15: =SUM(D4:D5)*0.1 -> 398.0725 | E15: 398.0725 | F15: 398.0725 | G15: 398.0725 | H15: 398.0725 | I15: 398.0725 | J15: 398.0725 | K15: 398.0725 | L15: 398.0725 | M15: 398.0725 | N15: 398.0725 | O15: 0 | P15: =SUM(C15:N15) -> 4776.87 | AB15: | | AD15: | | AG15: | | AJ15: | | AM15: | | AP15: |
B16: Roth IRA | C16: =5500/12 -> 458.3333333 | D16: =C16 -> 458.3333333 | E16: =D16 -> 458.3333333 | F16: 458.3333333 | G16: 458.3333333 | H16: 458.3333333 | I16: 458.3333333 | J16: 458.3333333 | K16: 458.3333333 | L16: 458.3333333 | M16: 458.3333333 | N16: 458.3333333 | P16: 5500 | AB16: | | AD16: | | AG16: | | AJ16: | | AM16: | | AP16: |
P17: 0
B18: Mortgage/Rent | C18: 1000 | D18: =$C18 -> 1000 | E18: =$C18 -> 1000 | F18: 1000 | G18: 1000 | H18: 1000 | I18: 1000 | J18: 1000 | K18: 1000 | L18: 1000 | M18: 1000 | N18: 1000 | P18: 12000 | AB18: | | AD18: | | AG18: | | AJ18: | | AM18: | | AP18: |
B19: Utilities + Cable | C19: 190 | D19: =$C19 -> 190 | E19: 190 | F19: 190 | G19: 190 | H19: 190 | I19: 190 | J19: 190 | K19: 190 | L19: 190 | M19: 190 | N19: 190 | P19: 2280 | AB19: | | AD19: | | AE19: ---------------------------------------------------------------------------------- | AN19: - | AP19: |
B20: Phone & Cell Phone | C20: 110 | D20: 110 | E20: 110 | F20: 110 | G20: 110 | H20: 110 | I20: 110 | J20: 110 | K20: 110 | L20: 110 | M20: 110 | N20: 110 | P20: 1320 | AB20: | | AD20: | | AF20: Clothing | AG20: | | AI20: Gas | AJ20: | | AL20: Debt Pmts | AM20: | | AP20: |
B21: Food | C21: 400 | D21: 400 | E21: 400 | F21: 400 | G21: 400 | H21: 400 | I21: 400 | J21: 400 | K21: 400 | L21: 400 | M21: 400 | N21: 400 | P21: 4800 | AB21: | | AD21: | | AE21: ---------------------------------------------------------------------------------- | AN21: - | AP21: |
B22: Clothing | C22: 150 | D22: 150 | E22: 150 | F22: 150 | G22: 150 | H22: 150 | I22: 150 | J22: 150 | K22: 150 | L22: 150 | M22: 150 | N22: 150 | P22: 1800 | AB22: | | AD22: | | AF22: =#REF! ->  | AG22: | | AI22: =#REF! ->  | AJ22: | | AL22: =F61 -> 0 | AM22: | | AP22: |
B23: Gas | C23: 170 | D23: 170 | E23: 170 | F23: 170 | G23: 170 | H23: 170 | I23: 170 | J23: 170 | K23: 170 | L23: 170 | M23: 170 | N23: 170 | P23: 2040 | AB23: | | AD23: | | AG23: | | AJ23: | | AM23: | | AP23: |
B24: Car Insurance | C24: 98.49 | D24: =C24 -> 98.49 | E24: =D24 -> 98.49 | F24: 98.49 | G24: 98.49 | H24: 98.49 | I24: 98.49 | J24: 98.49 | K24: 98.49 | L24: 98.49 | M24: 98.49 | N24: 98.49 | P24: 1181.88 | AB24: | | AD24: | | AG24: | | AJ24: | | AM24: | | AP24: |
B25: Rec&Misc | C25: 120 | D25: 120 | E25: 120 | F25: 120 | G25: 120 | H25: 120 | I25: 120 | J25: 120 | K25: 120 | L25: 120 | M25: 120 | N25: 120 | P25: 1440 | AB25: | | AD25: | | AG25: | | AJ25: | | AM25: | | AP25: |
B26: Health Insurance | C26: 200 | D26: 200 | E26: 200 | F26: 200 | G26: 200 | H26: 200 | I26: 200 | J26: 200 | K26: 200 | L26: 200 | M26: 200 | N26: 200 | P26: 2400 | AB26: | | AD26: | | AG26: | | AJ26: | | AM26: | | AP26: |
B27: Tuition | P27: 0 | AB27: | | AD27: | | AG27: | | AJ27: | | AM27: | | AP27: |
P28: 0 | AB28: | | AD28: | | AG28: | | AJ28: | | AM28: | | AP28: |
B29: Christmas | N29: 400 | P29: 400 | AB29: | | AD29: | | AG29: | | AJ29: | | AM29: | | AP29: |
B30: Medical | C30: 40 | D30: 40 | E30: 40 | F30: 40 | G30: 40 | H30: 40 | I30: 40 | J30: 40 | K30: 40 | L30: 40 | M30: 40 | N30: 40 | P30: 480
B31: Debt | C31: =SUM('Debt Repayment Schedule'!$B$16:$J$16) -> 272.8469944 | D31: =SUM('Debt Repayment Schedule'!$B$16:$J$16) -> 272.8469944 | E31: =SUM('Debt Repayment Schedule'!$B$16:$J$16) -> 272.8469944 | F31: =SUM('Debt Repayment Schedule'!$B$16:$J$16) -> 272.8469944 | G31: =SUM('Debt Repayment Schedule'!$B$16:$J$16) -> 272.8469944 | H31: =SUM('Debt Repayment Schedule'!$B$16:$J$16) -> 272.8469944 | I31: =SUM('Debt Repayment Schedule'!$B$16:$J$16) -> 272.8469944 | J31: =SUM('Debt Repayment Schedule'!$B$16:$J$16) -> 272.8469944 | K31: =SUM('Debt Repayment Schedule'!$B$16:$J$16) -> 272.8469944 | L31: =SUM('Debt Repayment Schedule'!$B$16:$J$16) -> 272.8469944 | M31: =SUM('Debt Repayment Schedule'!$B$16:$J$16) -> 272.8469944 | N31: =SUM('Debt Repayment Schedule'!$B$16:$J$16) -> 272.8469944 | P31: 3274.163933
B32: Charity/Donations | C32: =5+50 -> 55 | D32: =C32 -> 55 | E32: =D32 -> 55 | F32: 55 | G32: 55 | H32: 55 | I32: 55 | J32: 55 | K32: 55 | L32: 55 | M32: 55 | N32: 55 | P32: 660
B33: Summer Trip | C33: =2500/12 -> 208.3333333 | D33: =C33 -> 208.3333333 | E33: =D33 -> 208.3333333 | F33: 208.3333333 | G33: 208.3333333 | H33: 208.3333333 | I33: 208.3333333 | J33: 208.3333333 | K33: 208.3333333 | L33: 208.3333333 | M33: 208.3333333 | N33: 208.3333333 | P33: 2500
P34: 0 | AB34: | | AD34: | | AG34: | | AJ34: | | AM34: | | AP34: |
P35: 0 | AB35: | | AD35: | | AG35: | | AJ35: | | AM35: | | AP35: |
A36: TOTAL EXPENDITURES | C36: =SUM(C15:C35) -> 3871.076161 | D36: 3871.076161 | E36: 3871.076161 | F36: 3871.076161 | G36: =SUM(G15:G35) -> 3871.076161 | H36: 3871.076161 | I36: 3871.076161 | J36: 3871.076161 | K36: 3871.076161 | L36: 3871.076161 | M36: 3871.076161 | N36: 4271.076161 | O36: 0 | P36: =+SUM(P15:P35) -> 46852.91393 | AB36: | | AD36: | | AG36: | | AJ36: | | AM36: | | AP36: |
A37: BALANCE | C37: =+C12-C36 -> 21137.94884 | D37: =+D12-D36 -> 109.6488389 | E37: 109.6488389 | F37: 109.6488389 | G37: =G12-G36 -> 109.6488389 | H37: 109.6488389 | I37: 109.6488389 | J37: 109.6488389 | K37: 109.6488389 | L37: 109.6488389 | M37: 109.6488389 | N37: -290.3511611 | O37: 0 | P37: =P12-P36 -> 21944.08607
B38: Balance each month | C38: =C37 -> 21137.94884 | D38: =C37+D37 -> 21247.59768 | E38: =D38+E37 -> 21357.24652 | F38: 21466.89536 | G38: 21576.54419 | H38: 21686.19303 | I38: 21795.84187 | J38: 21905.49071 | K38: 22015.13955 | L38: 22124.78839 | M38: 22234.43723 | N38: =M38+N37 -> 21944.08607 | O38: =N38+O37 -> 21944.08607
B40: As an aside
B41: Using a free service like Mint.com to keep track of your spending will allow to be more accurate with your budgeting and help you see where you are over spending.

Sheet Savings
A1: Do you have enough savings?
A2: Savings should equal 3 - 6 months worth of expenses
A3: After filling out Budget you know what 3 - 6 months of expenses are.
A5: How much do you have in savings? | B5: =Budget!C9 -> 11028.3
A7: Do you have enough? | B7: =IF(B5>SUM(Budget!D36:I36),"Yes 6 months",IF(B5>SUM(Budget!D36:F36),"Yes 3 Months","No")) -> No
A9: =IF(B7="No","Should this be a priority?","") -> Should this be a priority?
A10: =IF(B7="No","Modern Financial thought says you need to pay off your debts while you maintain a small savings account as a saftey net. You should hold about $1000 in savings while you pay down debts.",IF(B7="Yes 6 months","You may think about using some of what you have in savings above 6 months to pay down debt or invest.","Great job saving. Continue to save a little but you should be using extra cash to focus on paying off your debts and growing your retirement accounts .")) -> Modern Financial thought says you need to pay off your debts while you maintain a small savings account as a saftey net. You should hold about $1000 in savings while you pay down debts.
A11: =IF(B7="No","Do you have at least $1000 in savings?","") -> Do you have at least $1000 in savings? | B11: =IF(A11="","",IF(B5>1000,"Yes","No")) -> Yes
A12: =IF(B11="","",IF(B11="Yes","You should agressively pay down your debts.","You should put money towards savings and then pay down debt.")) -> You should agressively pay down your debts.

Sheet House Decision
A1: Inputs
A2: Desired House Loan
A3: Purchase Price | B3: 180000
A4: Down Payment | B4: 20000
A5: PV | B5: =B3-B4 -> 160000
A6: Rate | B6: 0.041 | C6: Current 30 year rate | D6: ='Supplement sheets'!I6 -> 0.042
A7: Years | B7: 30
A8: Payment Schedule | B8: 12
A9: State | B9: =Taxes!B7 -> Arizona
A10: Taxes | B10: =VLOOKUP(B9,D33:E83,2,FALSE)*B3/B8 -> 108
A11: Insurance | B11: =(B3/1000*3.5/B8)+IF(B4>B3*0.2,0,B5*0.015/12) -> 252.5
A14: Outputs
A15: Front End | B15: =(PMT(B6/B8,B7*B8,-B5,0,0)+B10+B11)/(Taxes!B15/12) -> 0.2530019477 | C15: 0.28
A17: Back End | B17: =(PMT(B6/B8,B7*B8,-B5,0,0)+B10+B11+(SUM('Debt Repayment Schedule'!B17:J17)-Accelerator_Amount))/(Taxes!B15/12) -> 0.3747905209 | C17: 0.36
A19: Must pass both tests to receive a loan (ie. Both will have a green background).
A20: =IF(B17>C17,"You may need to look into paying down some of your debts in order to get this loan",IF(B15>C15,"You may need to look into putting a larger down payment in order to get this loan","")) -> You may need to look into paying down some of your debts in order to get this loan
A23: Front End Load | D23: Backend Load
A24: The front-end debt ratio is commonly known as the mortgage-to-income ratio. It is computed by dividing your projected monthly mortgage payment by your monthly gross income. A typical monthly mortgage includes the principal, interest, taxes and insurance amounts. Staying within standard limits help you avoid taking on too much home loan debt. The standard maximum front-end limit used by conventional lenders is 28 percent. When you apply for a new loan with a standard 20-percent down payment, the lender generally approves you for a request that does not exceed this limit. | D24: The back-end ratio is otherwise known as your debt-to-income ratio. This is a broader look at your current debt position and your ability to take on home loan debt. Car loans, personal loans and credit card debt payments are added to your projected mortgage to figure out how much new debt you can afford. The standard maximum limits with the back-end ratio are 36 percent on conventional loans and 41 percent on FHA loans.
A26: Principle and Interest
A27: Principal is the money used to pay down the balance of the loan; interest is the charge you pay to the lender for the privilege of borrowing the money
A29: Insurance
A30: According to the Federal Reserve Bureau, the average cost of an annual premium for homeowners insurance is between $300 and $1,000. For most homeowners, the annual costs for a homeowners insurance policy can be estimated by dividing the value of the home by 1,000, then multiplying the result by $3.50. | D30: http://www.tax-rates.org/taxtables/property-tax-by-state
A32: Taxes | D32: Tax table | E32: % of Home Value
A33: A property tax is a municipal tax levied by counties, cities, or special tax districts on most types of real estate - including homes, businesses, and parcels of land. The amount of property tax owed depends on the appraised fair market value of the property, as determined by the property tax assessor. | D33: Alabama | E33: 0.0033
D34: Alaska | E34: 0.0104
D35: Arizona | E35: 0.0072
D36: Arkansas | E36: 0.0052
D37: California | E37: 0.0074
D38: Colorado | E38: 0.006
D39: Connecticut | E39: 0.0163
D40: Delaware | E40: 0.0043
D41: District of Columbia | E41: 0.0046
D42: Florida | E42: 0.0097
D43: Georgia | E43: 0.0083
D44: Hawaii | E44: 0.0026
D45: Idaho | E45: 0.0069
D46: Illinois | E46: 0.0173
D47: Indiana | E47: 0.0085
D48: Iowa | E48: 0.0129
D49: Kansas | E49: 0.0129
D50: Kentucky | E50: 0.0072
D51: Louisiana | E51: 0.0018
D52: Maine | E52: 0.0109
D53: Maryland | E53: 0.0087
D54: Massachusetts | E54: 0.0104
D55: Michigan | E55: 0.0162
D56: Minnesota | E56: 0.0105
D57: Mississippi | E57: 0.0052
D58: Missouri | E58: 0.0091
D59: Montana | E59: 0.0083
D60: Nebraska | E60: 0.0176
D61: Nevada | E61: 0.0084
D62: New Hampshire | E62: 0.0186
D63: New Jersey | E63: 0.0189
D64: New Mexico | E64: 0.0055
D65: New York | E65: 0.0123
D66: North Carolina | E66: 0.0078
D67: North Dakota | E67: 0.0142
D68: Ohio | E68: 0.0136
D69: Oklahoma | E69: 0.0074
D70: Oregon | E70: 0.0087
D71: Pennsylvania | E71: 0.0135
D72: Rhode Island | E72: 0.0135
D73: South Carolina | E73: 0.005
D74: South Dakota | E74: 0.0128
D75: Tennessee | E75: 0.0068
D76: Texas | E76: 0.0181
D77: Utah | E77: 0.006
D78: Vermont | E78: 0.0159
D79: Virginia | E79: 0.0074
D80: Washington | E80: 0.0092
D81: West Virginia | E81: 0.0049
D82: Wisconsin | E82: 0.0176
D83: Wyoming | E83: 0.0058

Sheet Investing
A1: The most important part about this section is this is the investing you want to do 1) to purchase items with appreciated assets and 2) to become wealthy
A2: First set up a goal
A3: Smart people invest and then buy their toys, poor people buy them with debt.
A4: So what we want to do is decide on a goal that we want to achieve and then find out how much we need to say for it.
A5: A few examples are here below.
A6: GOAL: | B6: NEW CAR
A7: How much I need: | C7: 25000 | D7: in dollars | E7: =-FV('Supplement sheets'!E9,Investing!C8,0,Investing!C7,0) -> 27907.65012 | F7: What the Car will cost when you are ready to buy.
A8: When do I need it: | C8: 7 | D8: in years
A9: Required investment each month: | C9: =PMT('Supplement sheets'!I3/12,Investing!C8*12,0,(FV('Supplement sheets'!E9,Investing!C8,0,Investing!C7,0)),0) -> 286.3620935 | D9: in dollars | E9: =C9*12*C8 -> 24054.41585 | F9: What you will actually pay.
E10: =(PMT(('Supplement sheets'!H6-0.02)/12,5*12,(FV('Supplement sheets'!E9,Investing!C8-5,0,Investing!C7,0)),0,0))*12*5 -> 27855.07336 | F10: What getting debt would cost you.
E11: =E10-E9 -> 3800.657505 | F11: Net Savings
A13: GOAL: | B13: TRIP to Europe
A14: How much I need: | C14: 8000 | D14: in dollars | E14: =-FV('Supplement sheets'!E9,Investing!C15,0,Investing!C14,0) -> 8386.263951 | F14: What the trip will cost when you are ready to buy.
A15: When do I need it: | C15: 3 | D15: in years
A16: Required investment each month: | C16: =PMT('Supplement sheets'!I8/12,Investing!C15*12,0,(FV('Supplement sheets'!E9,Investing!C15,0,Investing!C14,0)),0) -> 229.9084198 | D16: in dollars | E16: =C16*12*C15 -> 8276.703112 | F16: What you will actually pay.
E17: =(PMT('Supplement sheets'!I9/12,5*12,(FV('Supplement sheets'!E9,C15,0,Investing!C14,0)),0,0))*12*5 -> 11448.79657 | F17: What getting debt would cost you.
E18: =E17-E16 -> 3172.093463 | F18: Net Savings
A19: GOAL: | B19: Pay my expenses with invested dollars
A20: How much I need: | C20: =Budget!P36 -> 46852.91393 | D20: in dollars | E20: =-FV('Supplement sheets'!E15,Investing!C21,0,Investing!C20,0) -> 46852.91393
A21: When do I need it: | C21: 1 | D21: in years
A22: Required investment each month: | C22: =-PMT(0.02/12,12,0,C20,0) -> 3868.748209 | D22: in dollars | E22: =C22*12*C21 -> 46424.97851 | F22: What you will actually pay.
E23: =(PMT('Supplement sheets'!I15/12,5*12,(FV('Supplement sheets'!E15,C21,0,Investing!C20,0)),0,0))*12*5 -> 46852.91393 | F23: What getting debt would cost you.
E24: =E23-E22 -> 427.9354276 | F24: Net Savings
F25: Between this number and paying off your debts you could almost fully fund your retirment goal.

Sheet Real Estate Investing
A2: Inputs
A3: Purchase Price | B3: 350000
A4: Land Value | B4: 100000
A5: Improvement Value | B5: =B3-B4 -> 250000
A7: Investors Criteria and Contribution
A8: Initial Equity Investment | B8: 75000
A9: Investors Required Rate of Return | B9: 0.12
A11: Financing Information
A12: Mortgage Amount | B12: 275000
A13: Financing Term (Years) | B13: 25
A14: No. of Payment Per Year | B14: 12
A15: Annual Mortgage Interest Rate | B15: 0.07
A16: Private Mortgage Insurance (yearly) | B16: =IF(B8>B3*0.2,0,B12*0.015/12) -> 0
A18: Tax Information
A19: Depreciable Life (27.5 Res 39 Comm) | B19: 39
A20: Marginal Income Tax Rate | B20: 0.28
A21: Capital Gains Tax Rate | B21: 0.2
A22: Recapture Tax Rate | B22: 0.25
A23: Investor's Modified Adjusted Gross Inc. | B23: 170000
A26: Forecast Operating Data
A27: First Year forecast PGI | B27: 50000
A28: Annual Growth in PGI | B28: 0.05
A29: % Annual Vacancy | B29: 0.06
A30: % Operating Expenses of EGI | B30: 0.31
A32: Future Sales Information
A33: Forecast Future Sales Price | B33: 400000
A34: Future Selling Expenses | B34: 0.08
A36: Years | B36: 0 | C36: 1 | D36: 2 | E36: 3 | F36: 4 | G36: 5 | I36: Termination (Reversion) Statement
A37: Potential Gross Income | C37: =B27 -> 50000 | D37: =C37*(1+$B$28) -> 52500 | E37: =D37*(1+$B$28) -> 55125 | F37: 57881.25 | G37: 60775.3125 | I37: Gross Future Sales Price | J37: =B33 -> 400000
A38: Less Vacancy & Collection Loss | C38: =C37*-$B$29 -> -3000 | D38: =-D37*$B$29 -> -3150 | E38: -3307.5 | F38: -3472.875 | G38: -3646.51875 | I38: Less Selling Expenses | J38: =-J37*B34 -> -32000
A39: Plus Other Income | C39: 0 | D39: =C39 -> 0 | E39: =D39 -> 0 | F39: 0 | G39: 0 | I39: Net Sales Proceeds | J39: =J37+J38 -> 368000
A40: Effective Gross Income | C40: =SUM(C37:C39) -> 47000 | D40: =SUM(D37:D39) -> 49350 | E40: 51817.5 | F40: 54408.375 | G40: 57128.79375 | I40: Less Mortgage Balance | J40: =-(CUMPRINC(B15/B14,B13*B14,B12,1,G36*12,0)+B12) -> -250695.9191
A41: LessOperating Expenses | C41: =C40*-$B$30 -> -14570 | D41: =D40*-$B$30 -> -15298.5 | E41: -16063.425 | F41: -16866.59625 | G41: -17709.92606 | I41: Before Tax Cash on Sale | J41: =J39+J40 -> 117304.0809
A42: Net Operating Income | C42: =SUM(C40:C41) -> 32430 | D42: =SUM(D40:D41) -> 34051.5 | E42: 35754.075 | F42: 37541.77875 | G42: 39418.86769
A43: Less Private Mortage Insurance | C43: =-$B$16 -> 0 | D43: =-$B$16 -> 0 | E43: 0 | F43: 0 | G43: 0 | I43: Net Sales Proceeds | J43: =J39 -> 368000
A44: Less Annualized Mortgage Payments | C44: =PMT($B$15/$B$14,$B$13*$B$14,$B$12,0,0)*$B$14 -> -23323.71351 | D44: =PMT($B$15/$B$14,$B$13*$B$14,$B$12,0,0)*$B$14 -> -23323.71351 | E44: -23323.71351 | F44: -23323.71351 | G44: -23323.71351 | I44: Less Cost Basis | J44: =-B3 -> -350000
A45: Before Tax Cash Flows | C45: =SUM(C42:C44) -> 9106.28649 | D45: =SUM(D42:D44) -> 10727.78649 | E45: 12430.36149 | F45: 14218.06524 | G45: 16095.15418 | I45: Capital Gain (Economic Gain) | J45: =J43+J44 -> 18000
A46: Less Annual Depreciation | C46: =-$B$5/$B$19 -> -6410.25641 | D46: =-$B$5/$B$19 -> -6410.25641 | E46: -6410.25641 | F46: -6410.25641 | G46: -6410.25641 | I46: X Capital Gains Rate | J46: =B21 -> 0.2
A47: Plus Annual Principal Paid | C47: =-CUMPRINC($B$15/$B$14,$B$13*$B$14,$B$12,1,C36*$B$14,0) -> 4206.986843 | D47: =-CUMPRINC($B$15/$B$14,$B$13*$B$14,$B$12,C36*$B$14+1,D36*$B$14,0) -> 4511.110262 | E47: =-CUMPRINC($B$15/$B$14,$B$13*$B$14,$B$12,D36*$B$14+1,E36*$B$14,0) -> 4837.218788 | F47: 5186.901725 | G47: =-CUMPRINC($B$15/$B$14,$B$13*$B$14,$B$12,F36*$B$14+1,G36*$B$14,0) -> 5561.86327 | I47: Capital Gains Taxes | J47: =J45*-J46 -> -3600
A48: Taxable Income | C48: =SUM(C45:C47) -> 6903.016923 | D48: =SUM(D45:D47) -> 8828.640342 | E48: 10857.32387 | F48: 12994.71055 | G48: 15246.76104
A49: Less Taxes from BTCF | C49: =IF(C48>0,C48*-$B$20,0) -> -1932.844738 | D49: =IF(D48>0,D48*-$B$20,0) -> -2472.019296 | E49: -3040.050683 | F49: -3638.518955 | G49: -4269.093091 | I49: Accumulated Depreciation | J49: =SUM(C46:G46) -> -32051.28205
A50: Savings from Passive Actitivity Loss | C50: =IF(C49=0,C48*-$B$20,0) -> 0 | D50: 0 | E50: 0 | F50: 0 | G50: 0 | I50: X Recapture Tax Rate | J50: =B22 -> 0.25
A51: After-tax Cash Flow from Operations | C51: =C49+C45+C50 -> 7173.441752 | D51: =D49+D45+D50 -> 8255.767194 | E51: 9390.310807 | F51: 10579.54628 | G51: 11826.06109 | I51: Recapture Taxes | J51: =J49*J50 -> -8012.820513
A52: Initial Equity Investment | B52: =-B8 -> -75000
A53: After-tax Cash on Sale | G53: =J56 -> 105691.2604 | I53: Before Tax Cash on Sale | J53: =J41 -> 117304.0809
A54: Total After-tax Cash Flow | B54: =SUM(B51:B53) -> -75000 | C54: =SUM(C51:C53) -> 7173.441752 | D54: 8255.767194 | E54: 9390.310807 | F54: 10579.54628 | G54: 117517.3215 | I54: Less Capital Gains Taxes | J54: =J47 -> -3600
I55: Less Recapture Taxes | J55: =J51 -> -8012.820513
I56: After Tax Cash on Sale | J56: =SUM(J53:J55) -> 105691.2604
A57: Investment Measures
A58: First Year Measures
A59: Payback Period (years) | B59: =-B52/C51 -> 10.45523231
A60: Profit Margin | B60: =(C54/C40) -> 0.1526264202
A61: Default or Breakeven Ratio | B61: =-(C41+C44)/C40 -> 0.8062492236
A62: Operating Expense Ratio | B62: =-C41/C40 -> 0.31
A63: Debt Coverage Ratio | B63: =C42/-C44 -> 1.390430387
A64: Loan to Value Ratio | B64: =B12/B3 -> 0.7857142857
A65: Effective Gross Income Multiplier | B65: =B3/C40 -> 7.446808511
A66: Capitalization Rate | B66: =C42/B3 -> 0.09265714286
A67: Before Tax Cash on Cash Return | B67: =C45/B8 -> 0.1214171532
A68: After Tax Cash on Cash Return | B68: =C54/B8 -> 0.09564589002
A70: Holding Period Measures
A71: Net Present Value | B71: =NPV(B9,C54:G54)+B54 -> 18076.12066
A72: Internal Rate of Return | B72: =+IRR(B54:G54) -> 0.1783080316

Sheet Retirement
A1: Inputs
A2: How much money do you want to live on each month during retirement in todays dollars? | B2: 5000 | E2: What will the value of a dollar be when you retire? | F2: =-PV(F3,(B6-B7),0,1,0) -> 0.2912910562
A3: What is your risk tollerance during reitrement? | B3: 0.03 | E3: Average Inflation rate over last x # of years, where x is how long you have until retirement. | F3: ='Supplement sheets'!E8 -> 0.03485571257
A4: What is your risk tollerance now? | B4: 0.1
A5: How long do you expect to live during retirment? | B5: 30
A6: At what age would you like to retire? | B6: 60
A7: What is your current age? | B7: 24
A8: How much do you currently have saved for retirement? | B8: 0
A10: Outputs
A11: How much money do you need to save each month now to retire with the life style you want? | B11: =PMT(B4/12,(B6-B7)*12,B8,(PV(B3/12,B5*12,-FV(F3,(B6-B7),0,B2,0),0,0)),0) -> 967.8102857
A13: Perspective
A14: Your Debts are % of your monthly retirement goal. | B14: =Budget!C31/Retirement!B11 -> 0.2819219825
A16: =IF(B14>0,"Get out of debt and start investing that money.","Great Job you're out of debt.") -> Get out of debt and start investing that money.

Sheet Financial Checklist
A1: Taxes
A2: Debt
A3: Budget
A4: Savings
A5: Retirement
A6: Trusts
A7: Wills
A8: Insurance:
B9: Health
B10: Property & Casualty
B11: Disability
B12: Long Term Care
B13: Life

Sheet Supplement sheets
A1: CPIAUCSL | H1: Last 10 years | I1: Todays rates
A2: lin | B2: Index 1982-84=100 | G2: 10 year treasury | H2: =3.3% -> 0.033 | I2: 0.025
A3: A | B3: Monthly | G3: Triple A bonds | H3: =4.9% -> 0.049 | I3: 0.042
A4: 1900-01-01 | B4: 1947-01-01 to 2015-01-01 | G4: Triple B bonds | H4: =6.03% -> 0.0603 | I4: 0.049
A5: Consumer Price Index for All Urban Consumers: All Items | G5: 6month CD | H5: =2.24% -> 0.0224 | I5: 0.0044
A6: US. Bureau of Labor Statistics | G6: 30 year mortgage | H6: =5.06% -> 0.0506 | I6: 0.042
A7: date | B7: value | C7: Inflation | D7: Retirement years | E7: =Retirement!B6-Retirement!B7 -> 36 | G7: SP500 | H7: 0.0624 | I7: 0.175
A8: 1947-01-01 | B8: 22.332 | D8: Inflation rate | E8: 0.03485571257 | G8: Money Market | I8: 0.009
A9: 1948-01-01 | B9: 24.045 | C9: =(B9-B8)/B9 -> 0.07124142233 | D9: Todays inflation | E9: =C75 -> 0.01584203589 | G9: Credit Cards | I9: 0.13
A10: 1949-01-01 | B10: 23.809 | C10: =(B10-B9)/B10 -> -0.009912218069
A11: 1950-01-01 | B11: 24.063 | C11: 0.01055562482
A12: 1951-01-01 | B12: 25.973 | C12: 0.07353790475
A13: 1952-01-01 | B13: 26.567 | C13: 0.02235856514
A14: 1953-01-01 | B14: 26.768 | C14: 0.007508965929
A15: 1954-01-01 | B15: 26.865 | C15: 0.003610645822
A16: 1955-01-01 | B16: 26.796 | C16: -0.002575011196
A17: 1956-01-01 | B17: 27.191 | C17: 0.01452686551
A18: 1957-01-01 | B18: 28.113 | C18: 0.03279621527
A19: 1958-01-01 | B19: 28.881 | C19: 0.02659187701
A20: 1959-01-01 | B20: 29.15 | C20: 0.00922813036
A21: 1960-01-01 | B21: 29.585 | C21: 0.01470339699
A22: 1961-01-01 | B22: 29.902 | C22: 0.01060129757
A23: 1962-01-01 | B23: 30.253 | C23: 0.01160215516
A24: 1963-01-01 | B24: 30.633 | C24: 0.0124049228
A25: 1964-01-01 | B25: 31.038 | C25: 0.01304852117
A26: 1965-01-01 | B26: 31.528 | C26: 0.01554174067
A27: 1966-01-01 | B27: 32.471 | C27: 0.02904129839
A28: 1967-01-01 | B28: 33.375 | C28: 0.02708614232
A29: 1968-01-01 | B29: 34.792 | C29: 0.04072775351
A30: 1969-01-01 | B30: 36.683 | C30: 0.0515497642
A31: 1970-01-01 | B31: 38.842 | C31: 0.05558416147
A32: 1971-01-01 | B32: 40.483 | C32: 0.04053553343
A33: 1972-01-01 | B33: 41.808 | C33: 0.03169249904
A34: 1973-01-01 | B34: 44.425 | C34: 0.05890827237
A35: 1974-01-01 | B35: 49.317 | C35: 0.09919500375
A36: 1975-01-01 | B36: 53.825 | C36: 0.08375290293
A37: 1976-01-01 | B37: 56.933 | C37: 0.05459048355
A38: 1977-01-01 | B38: 60.617 | C38: 0.06077503011
A39: 1978-01-01 | B39: 65.242 | C39: 0.07088991754
A40: 1979-01-01 | B40: 72.583 | C40: 0.1011393853
A41: 1980-01-01 | B41: 82.383 | C41: 0.1189565808
A42: 1981-01-01 | B42: 90.933 | C42: 0.09402527135
A43: 1982-01-01 | B43: 96.533 | C43: 0.05801125004
A44: 1983-01-01 | B44: 99.583 | C44: 0.03062771758
A45: 1984-01-01 | B45: 103.933 | C45: 0.04185388664
A46: 1985-01-01 | B46: 107.6 | C46: 0.03407992565
A47: 1986-01-01 | B47: 109.692 | C47: 0.01907158225
A48: 1987-01-01 | B48: 113.617 | C48: 0.03454588662
A49: 1988-01-01 | B49: 118.275 | C49: 0.03938279434
A50: 1989-01-01 | B50: 123.942 | C50: 0.04572299947
A51: 1990-01-01 | B51: 130.658 | C51: 0.05140136846
A52: 1991-01-01 | B52: 136.167 | C52: 0.0404576733
A53: 1992-01-01 | B53: 140.308 | C53: 0.02951364142
A54: 1993-01-01 | B54: 144.475 | C54: 0.02884236027
A55: 1994-01-01 | B55: 148.225 | C55: 0.02529937595
A56: 1995-01-01 | B56: 152.383 | C56: 0.02728650834
A57: 1996-01-01 | B57: 156.858 | C57: 0.028528988
A58: 1997-01-01 | B58: 160.525 | C58: 0.0228437938
A59: 1998-01-01 | B59: 163.008 | C59: 0.01523238123
A60: 1999-01-01 | B60: 166.583 | C60: 0.02146077331
A61: 2000-01-01 | B61: 172.192 | C61: 0.03257410333
A62: 2001-01-01 | B62: 177.042 | C62: 0.02739462952
A63: 2002-01-01 | B63: 179.867 | C63: 0.01570604947
A64: 2003-01-01 | B64: 184 | C64: 0.02246195652
A65: 2004-01-01 | B65: 188.908 | C65: 0.02598090076
A66: 2005-01-01 | B66: 195.267 | C66: 0.0325656665
A67: 2006-01-01 | B67: 201.558 | C67: 0.03121185961
A68: 2007-01-01 | B68: 207.344 | C68: 0.02790531677
A69: 2008-01-01 | B69: 215.254 | C69: 0.0367472846
A70: 2009-01-01 | B70: 214.565 | C70: -0.003211148137
A71: 2010-01-01 | B71: 218.076 | C71: 0.01609989178
A72: 2011-01-01 | B72: 224.93 | C72: 0.03047170231
A73: 2012-01-01 | B73: 229.6 | C73: 0.02033972125
A74: 2013-01-01 | B74: 232.962 | C74: =(B74-B73)/B74 -> 0.01443153819
A75: 2014-01-01 | B75: 236.712 | C75: 0.01584203589 | D75: =AVERAGE(C46:C75) -> 0.02700638536

Sheet Supplement sheets2
A1: DGS1 | H1: Last 10 years | J1: Todays rates
A2: lin | B2: Percent | G2: 10 year treasury | H2: =3.3% -> 0.033 | J2: 0.025
A3: A | B3: Daily | G3: Triple A bonds | H3: =4.9% -> 0.049 | J3: 0.042
A4: 2004-01-01 | B4: 1962-01-02 to 2015-03-20 | G4: Triple B bonds | H4: =6.03% -> 0.0603 | J4: 0.049
A5: 1-Year Treasury Constant Maturity Rate | G5: 6month CD
A6: Board of Governors of the Federal Reserve System (US) | G6: 30 year mortgage
A7: date | B7: value | G7: SP500
A8: 2004-01-01 | B8: 1.89 | G8: Money Market | H8: Invalid data manipulation | J8: Invalid data manipulation
A9: 2005-01-01 | B9: 3.62 | C9: =(B9-B8)/B8 -> 0.9153439153
A10: 2006-01-01 | B10: 4.94 | C10: =(B10-B9)/B9 -> 0.364640884
A11: 2007-01-01 | B11: 4.53 | C11: -0.08299595142
A12: 2008-01-01 | B12: 1.83 | C12: -0.5960264901
A13: 2009-01-01 | B13: 0.47 | C13: -0.7431693989
A14: 2010-01-01 | B14: 0.32 | C14: -0.3191489362
A15: 2011-01-01 | B15: 0.18 | C15: -0.4375
A16: 2012-01-01 | B16: 0.17 | C16: -0.05555555556 | D16: =AVERAGE(C8:C16) -> -0.1193014416
A17: 2013-01-01 | B17: 0.13 | C17: -0.2352941176
A18: 2014-01-01 | B18: 0.12 | C18: =AVERAGE(B9:B18) -> 1.631
A19: 2015-01-01 | B19: =NA() -> 
C36: =AVERAGE(B27:B36) -> 
C39: =AVERAGE(B30:B39) -> 
C55: =AVERAGE(B46:B55) -> 

Sheet LOOKUPS (hidden)
A1: 1 | B1: January
A2: 2 | B2: February
A3: 3 | B3: March
A4: 4 | B4: April
A5: 5 | B5: May
A6: 6 | B6: June
A7: 7 | B7: July
A8: 8 | B8: August
A9: 9 | B9: September
A10: 10 | B10: October
A11: 11 | B11: November
A12: 12 | B12: December
